fUST/lending_fUST_20260525
["ID","MTS","AMOUNT","RATE_DAILY","PERIOD"]
[422976305,1779697844000,-677.31,9.863e-05,2]
[422976281,1779697844000,-500.0,9.863e-05,2]
[422976296,1779697844000,-500.0,9.863e-05,2]
[422976327,1779697844000,-4179.72,9.863e-05,2]
[422976275,1779697844000,-500.0,9.863e-05,2]
[422976274,1779697844000,-609.5,9.863e-05,2]
[422976276,1779697844000,-546.49,9.863e-05,2]
[422976271,1779697844000,-500.0,9.863e-05,2]
[422976279,1779697844000,-679.4127,9.863e-05,2]
[422976278,1779697844000,-500.0,9.863e-05,2]
[422976277,1779697844000,-1132.43,9.863e-05,2]
[422976272,1779697844000,-500.0,9.863e-05,2]
[422976270,1779697844000,-500.0,9.863e-05,2]
[422976273,1779697844000,-500.0,9.863e-05,2]
[422976291,1779697844000,-500.0,9.863e-05,2]
[422976282,1779697844000,-500.0,9.863e-05,2]
[422976280,1779697844000,-500.0,9.863e-05,2]
[422976283,1779697844000,-501.12,9.863e-05,2]
[422976287,1779697844000,-500.0,9.863e-05,2]
[422976286,1779697844000,-622.33,9.863e-05,2]
[422976284,1779697844000,-500.0,9.863e-05,2]
[422976288,1779697844000,-500.0,9.863e-05,2]
[422976285,1779697844000,-500.0,9.863e-05,2]
[422976289,1779697844000,-500.0,9.863e-05,2]
[422976290,1779697844000,-620.28,9.863e-05,2]
[422976293,1779697844000,-1316.95,9.863e-05,2]
[422976295,1779697844000,-500.0,9.863e-05,2]
[422976297,1779697844000,-554.67,9.863e-05,2]
[422976303,1779697844000,-500.0,9.863e-05,2]
[422976325,1779697844000,-1731.17,9.863e-05,2]
[422976292,1779697844000,-500.0,9.863e-05,2]
[422976328,1779697844000,-500.0,9.863e-05,2]
[422976366,1779697844000,-500.0,9.863e-05,2]
[422976369,1779697844000,-500.0,9.863e-05,2]
[422976368,1779697844000,-1590.83,9.863e-05,2]
[422976370,1779697844000,-500.0,9.863e-05,2]
[422976358,1779697844000,-635.84,9.863e-05,2]
[422976361,1779697844000,-500.0,9.863e-05,2]
[422976362,1779697844000,-856.54,9.863e-05,2]
[422976360,1779697844000,-1376.44,9.863e-05,2]
[422976364,1779697844000,-500.0,9.863e-05,2]
[422976363,1779697844000,-500.0,9.863e-05,2]
[422976365,1779697844000,-500.0,9.863e-05,2]
[422976371,1779697844000,-171.996,0.0001,2]
[422976367,1779697844000,-4115.35,9.863e-05,2]
[422976374,1779697844000,-9878.21797292,0.0001,2]
[422976373,1779697844000,-202567.51317706,0.0001,2]
[422976376,1779697844000,-1099.62879187,0.0001,2]
[422976375,1779697844000,-1000.0,0.0001,2]
[422976378,1779697844000,-177.95822444,0.0001,2]
[422976377,1779697844000,-677.84382228,0.0001,2]
[422976372,1779697844000,-4397.82446017,0.0001,2]
[422976381,1779697844000,-500.0,0.00010136,2]
[422976380,1779697844000,-801.0163,0.00010136,2]
[422976384,1779697844000,-500.0,0.00010136,2]
[422976383,1779697844000,-500.0,0.00010136,2]
[422976385,1779697844000,-218.30358688,0.00010136,2]
[422976319,1779697844000,-169.57498023,9.863e-05,2]
[422976382,1779697844000,-500.0,0.00010136,2]
[422976359,1779697844000,-500.0,9.863e-05,2]
[422976379,1779697844000,-179.0781,0.00010101,5]
[422976357,1779697844000,-5088.12,9.863e-05,2]
[422976355,1779697844000,-2458.36,9.863e-05,2]
[422976329,1779697844000,-500.0,9.863e-05,2]
[422976330,1779697844000,-500.0,9.863e-05,2]
[422976332,1779697844000,-901.22,9.863e-05,2]
[422976342,1779697844000,-1429.06,9.863e-05,2]
[422976344,1779697844000,-1099.99,9.863e-05,2]
[422976333,1779697844000,-751.98,9.863e-05,2]
[422976337,1779697844000,-2065.05,9.863e-05,2]
[422976340,1779697844000,-500.0,9.863e-05,2]
[422976343,1779697844000,-2485.17,9.863e-05,2]
[422976331,1779697844000,-500.0,9.863e-05,2]
[422976339,1779697844000,-500.0,9.863e-05,2]
[422976335,1779697844000,-848.43,9.863e-05,2]
[422976341,1779697844000,-500.0,9.863e-05,2]
[422976338,1779697844000,-1939.88,9.863e-05,2]
[422976334,1779697844000,-1364.15,9.863e-05,2]
[422976346,1779697844000,-500.0,9.863e-05,2]
[422976353,1779697844000,-500.0,9.863e-05,2]
[422976356,1779697844000,-500.0,9.863e-05,2]
[422976354,1779697844000,-625.28,9.863e-05,2]
[422976350,1779697844000,-500.0,9.863e-05,2]
[422976351,1779697844000,-1760.86,9.863e-05,2]
[422976349,1779697844000,-689.81,9.863e-05,2]
[422976348,1779697844000,-17098.84,9.863e-05,2]
[422976345,1779697844000,-1210.42,9.863e-05,2]
[422976336,1779697844000,-1276.56,9.863e-05,2]
[422976347,1779697844000,-500.0,9.863e-05,2]
[422976403,1779697845000,-555.26862982,0.00010136,2]
[422976408,1779697845000,-500.0,0.00010136,2]
[422976407,1779697845000,-920.97,0.00010136,2]
[422976412,1779697845000,-500.0,0.00010136,2]
[422976413,1779697845000,-500.0,0.00010136,2]
[422976411,1779697845000,-834.81,0.00010136,2]
[422976423,1779697845000,-500.0,0.00010136,2]
[422976422,1779697845000,-500.0,0.00010136,2]
[422976418,1779697845000,-500.0,0.00010136,2]
[422976415,1779697845000,-181.61198185,0.00010136,2]
[422976416,1779697845000,-873.33,0.00010136,2]
[422976417,1779697845000,-500.0,0.00010136,2]
[422976420,1779697845000,-500.0,0.00010136,2]
[422976419,1779697845000,-1171.11,0.00010136,2]
[422976421,1779697845000,-500.0,0.00010136,2]
[422976405,1779697845000,-223.00480477,0.00010136,2]
[422976425,1779697845000,-1118.85,0.00010136,2]
[422976414,1779697845000,-743.05,0.00010136,2]
[422976404,1779697845000,-523.41126338,0.00010136,2]
[422976393,1779697845000,-500.0,0.00010136,2]
[422976400,1779697845000,-500.0,0.00010136,2]
[422976435,1779697845000,-546.49,0.00010136,2]
[422976387,1779697845000,-500.0,0.00010136,2]
[422976395,1779697845000,-500.0,0.00010136,2]
[422976397,1779697845000,-500.0,0.00010136,2]
[422976396,1779697845000,-866.08,0.00010136,2]
[422976386,1779697845000,-500.0,0.00010136,2]
[422976388,1779697845000,-703.8,0.00010136,2]
[422976389,1779697845000,-500.0,0.00010136,2]
[422976406,1779697845000,-500.0,0.00010136,2]
[422976394,1779697845000,-500.0,0.00010136,2]
[422976390,1779697845000,-500.0,0.00010136,2]
[422976391,1779697845000,-500.0,0.00010136,2]
[422976399,1779697845000,-500.0,0.00010136,2]
[422976410,1779697845000,-500.0,0.00010136,2]
[422976398,1779697845000,-500.0,0.00010136,2]
[422976409,1779697845000,-500.0,0.00010136,2]
[422976402,1779697845000,-500.0,0.00010136,2]
[422976401,1779697845000,-500.0,0.00010136,2]
[422976392,1779697845000,-284.88845994,0.00010136,2]
[422976424,1779697845000,-500.0,0.00010136,2]
[422976436,1779697845000,-1132.43,0.00010136,2]
[422976428,1779697845000,-500.0,0.00010136,2]
[422976457,1779697845000,-500.0,0.00010136,2]
[422976453,1779697845000,-500.0,0.00010136,2]
[422976456,1779697845000,-500.0,0.00010136,2]
[422976450,1779697845000,-500.0,0.00010136,2]
[422976452,1779697845000,-500.0,0.00010136,2]
[422976462,1779697845000,-500.0,0.00010136,2]
[422976454,1779697845000,-500.0,0.00010136,2]
[422976459,1779697845000,-500.0,0.00010136,2]
[422976461,1779697845000,-500.0,0.00010136,2]
[422976455,1779697845000,-554.67,0.00010136,2]
[422976458,1779697845000,-171.07129369,0.00010136,2]
[422976465,1779697845000,-500.0,0.00010136,2]
[422976473,1779697845000,-1510.48,0.00010136,2]
[422976466,1779697845000,-500.0,0.00010136,2]
[422976467,1779697845000,-500.0,0.00010136,2]
[422976471,1779697845000,-4357.7,0.00010136,2]
[422976474,1779697845000,-500.0,0.00010136,2]
[422976426,1779697845000,-500.0,0.00010136,2]
[422976460,1779697845000,-1257.68,0.00010136,2]
[422976463,1779697845000,-677.31,0.00010136,2]
[422976464,1779697845000,-500.0,0.00010136,2]
[422976444,1779697845000,-622.33,0.00010136,2]
[422976432,1779697845000,-500.0,0.00010136,2]
[422976451,1779697845000,-1316.95,0.00010136,2]
[422976427,1779697845000,-515.81,0.00010136,2]
[422976429,1779697845000,-500.0,0.00010136,2]
[422976433,1779697845000,-609.5,0.00010136,2]
[422976431,1779697845000,-500.0,0.00010136,2]
[422976430,1779697845000,-500.0,0.00010136,2]
[422976437,1779697845000,-500.0,0.00010136,2]
[422976439,1779697845000,-500.0,0.00010136,2]
[422976434,1779697845000,-500.0,0.00010136,2]
[422976441,1779697845000,-500.0,0.00010136,2]
[422976449,1779697845000,-500.0,0.00010136,2]
[422976438,1779697845000,-679.4127,0.00010136,2]
[422976447,1779697845000,-500.0,0.00010136,2]
[422976443,1779697845000,-500.0,0.00010136,2]
[422976442,1779697845000,-500.0,0.00010136,2]
[422976446,1779697845000,-500.0,0.00010136,2]
[422976448,1779697845000,-620.28,0.00010136,2]
[422976440,1779697845000,-500.0,0.00010136,2]
[422976445,1779697845000,-500.0,0.00010136,2]
[422976557,1779697846000,-920.97,0.0001041,2]
[422976560,1779697846000,-500.0,0.0001041,2]
[422976556,1779697846000,-500.0,0.0001041,2]
[422976553,1779697846000,-500.0,0.0001041,2]
[422976565,1779697846000,-743.05,0.0001041,2]
[422976548,1779697846000,-500.0,0.0001041,2]
[422976554,1779697846000,-320.96999299,0.0001041,2]
[422976552,1779697846000,-500.0,0.0001041,2]
[422976546,1779697846000,-500.0,0.0001041,2]
[422976549,1779697846000,-866.08,0.0001041,2]
[422976563,1779697846000,-500.0,0.0001041,2]
[422976547,1779697846000,-500.0,0.0001041,2]
[422976555,1779697846000,-500.0,0.0001041,2]
[422976558,1779697846000,-500.0,0.0001041,2]
[422976572,1779697846000,-500.0,0.0001041,2]
[422976559,1779697846000,-500.0,0.0001041,2]
[422976562,1779697846000,-500.0,0.0001041,2]
[422976561,1779697846000,-834.81,0.0001041,2]
[422976569,1779697846000,-500.0,0.0001041,2]
[422976579,1779697846000,-500.0,0.0001041,2]
[422976568,1779697846000,-500.0,0.0001041,2]
[422976580,1779697846000,-500.0,0.0001041,2]
[422976574,1779697846000,-500.0,0.0001041,2]
[422976570,1779697846000,-1171.11,0.0001041,2]
[422976571,1779697846000,-500.0,0.0001041,2]
[422976578,1779697846000,-515.81,0.0001041,2]
[422976577,1779697846000,-500.0,0.0001041,2]
[422976573,1779697846000,-500.0,0.0001041,2]
[422976544,1779697846000,-500.0,0.0001041,2]
[422976567,1779697846000,-873.33,0.0001041,2]
[422976543,1779697846000,-500.0,0.0001041,2]
[422976523,1779697846000,-500.0,0.00010136,2]
[422976542,1779697846000,-703.8,0.0001041,2]
[422976513,1779697846000,-500.0,0.00010136,2]
[422976526,1779697846000,-1590.83,0.00010136,2]
[422976525,1779697846000,-4115.35,0.00010136,2]
[422976516,1779697846000,-635.84,0.00010136,2]
[422976518,1779697846000,-1376.44,0.00010136,2]
[422976517,1779697846000,-500.0,0.00010136,2]
[422976514,1779697846000,-5088.12,0.00010136,2]
[422976519,1779697846000,-500.0,0.00010136,2]
[422976520,1779697846000,-856.54,0.00010136,2]
[422976521,1779697846000,-500.0,0.00010136,2]
[422976522,1779697846000,-500.0,0.00010136,2]
[422976524,1779697846000,-500.0,0.00010136,2]
[422976529,1779697846000,-5211.52529615,0.00010352,2]
[422976527,1779697846000,-500.0,0.00010136,2]
[422976545,1779697846000,-500.0,0.0001041,2]
[422976530,1779697846000,-5000.0,0.00010352,2]
[422976532,1779697846000,-5000.0,0.00010352,2]
[422976533,1779697846000,-5000.0,0.00010352,2]
[422976534,1779697846000,-177.0,0.00010356,2]
[422976576,1779697846000,-1118.85,0.0001041,2]
[422976536,1779697846000,-231.3871686,0.0001041,2]
[422976528,1779697846000,-500.0,0.00010136,2]
[422976535,1779697846000,-801.0163,0.0001041,2]
[422976538,1779697846000,-162.73045574,0.0001041,2]
[422976537,1779697846000,-500.0,0.0001041,2]
[422976550,1779697846000,-500.0,0.0001041,2]
[422976540,1779697846000,-500.0,0.0001041,2]
[422976541,1779697846000,-500.0,0.0001041,2]
[422976551,1779697846000,-500.0,0.0001041,2]
[422976539,1779697846000,-500.0,0.0001041,2]
[422976531,1779697846000,-5000.0,0.00010352,2]
[422976575,1779697846000,-500.0,0.0001041,2]
[422976624,1779697846000,-1510.48,0.0001041,2]
[422976586,1779697846000,-546.49,0.0001041,2]
[422976618,1779697846000,-500.0,0.0001041,2]
[422976623,1779697846000,-4357.7,0.0001041,2]
[422976617,1779697846000,-431.20004021,0.0001041,2]
[422976616,1779697846000,-202.94736518,0.0001041,2]
[422976620,1779697846000,-500.0,0.0001041,2]
[422976635,1779697846000,-500.0,0.0001041,2]
[422976636,1779697846000,-500.0,0.0001041,2]
[422976625,1779697846000,-500.0,0.0001041,2]
[422976637,1779697846000,-500.0,0.0001041,2]
[422976627,1779697846000,-964.48,0.0001041,2]
[422976626,1779697846000,-463.49443707,0.0001041,2]
[422976628,1779697846000,-453.4426799,0.0001041,2]
[422976629,1779697846000,-2964.55,0.0001041,2]
[422976634,1779697846000,-500.0,0.0001041,2]
[422976631,1779697846000,-1731.17,0.0001041,2]
[422976630,1779697846000,-853.49,0.0001041,2]
[422976632,1779697846000,-500.0,0.0001041,2]
[422976633,1779697846000,-4179.72,0.0001041,2]
[422976638,1779697846000,-901.22,0.0001041,2]
[422976643,1779697846000,-2065.05,0.0001041,2]
[422976642,1779697846000,-1276.56,0.0001041,2]
[422976639,1779697846000,-751.98,0.0001041,2]
[422976640,1779697846000,-1364.15,0.0001041,2]
[422976645,1779697846000,-500.0,0.0001041,2]
[422976581,1779697846000,-500.0,0.0001041,2]
[422976644,1779697846000,-1939.88,0.0001041,2]
[422976646,1779697846000,-500.0,0.0001041,2]
[422976648,1779697846000,-1429.06,0.0001041,2]
[422976647,1779697846000,-500.0,0.0001041,2]
[422976613,1779697846000,-500.0,0.0001041,2]
[422976619,1779697846000,-500.0,0.0001041,2]
[422976641,1779697846000,-848.43,0.0001041,2]
[422976611,1779697846000,-500.0,0.0001041,2]
[422976622,1779697846000,-615.72,0.0001041,2]
[422976583,1779697846000,-500.0,0.0001041,2]
[422976582,1779697846000,-500.0,0.0001041,2]
[422976584,1779697846000,-609.5,0.0001041,2]
[422976587,1779697846000,-1132.43,0.0001041,2]
[422976588,1779697846000,-500.0,0.0001041,2]
[422976591,1779697846000,-391.8,0.0001041,2]
[422976593,1779697846000,-500.0,0.0001041,2]
[422976590,1779697846000,-500.0,0.0001041,2]
[422976589,1779697846000,-679.4127,0.0001041,2]
[422976592,1779697846000,-500.0,0.0001041,2]
[422976606,1779697846000,-500.0,0.0001041,2]
[422976608,1779697846000,-554.67,0.0001041,2]
[422976607,1779697846000,-500.0,0.0001041,2]
[422976605,1779697846000,-500.0,0.0001041,2]
[422976585,1779697846000,-500.0,0.0001041,2]
[422976597,1779697846000,-500.0,0.0001041,2]
[422976596,1779697846000,-622.33,0.0001041,2]
[422976615,1779697846000,-677.31,0.0001041,2]
[422976621,1779697846000,-500.0,0.0001041,2]
[422976612,1779697846000,-1257.68,0.0001041,2]
[422976610,1779697846000,-500.0,0.0001041,2]
[422976604,1779697846000,-1316.95,0.0001041,2]
[422976614,1779697846000,-500.0,0.0001041,2]
[422976603,1779697846000,-500.0,0.0001041,2]
[422976594,1779697846000,-500.0,0.0001041,2]
[422976601,1779697846000,-620.28,0.0001041,2]
[422976609,1779697846000,-500.0,0.0001041,2]
[422976600,1779697846000,-500.0,0.0001041,2]
[422976602,1779697846000,-500.0,0.0001041,2]
[422976599,1779697846000,-500.0,0.0001041,2]
[422976686,1779697847000,-500.0,0.00010684,2]
[422976684,1779697847000,-500.0,0.00010684,2]
[422976691,1779697847000,-500.0,0.00010684,2]
[422976685,1779697847000,-628.50186195,0.00010684,2]
[422976690,1779697847000,-866.08,0.00010684,2]
[422976688,1779697847000,-500.0,0.00010684,2]
[422976689,1779697847000,-500.0,0.00010684,2]
[422976683,1779697847000,-703.8,0.00010684,2]
[422976682,1779697847000,-500.0,0.00010684,2]
[422976681,1779697847000,-500.0,0.00010684,2]
[422976687,1779697847000,-500.0,0.00010684,2]
[422976693,1779697847000,-290.72419131,0.00010684,2]
[422976694,1779697847000,-500.0,0.00010684,2]
[422976695,1779697847000,-500.0,0.00010684,2]
[422976699,1779697847000,-500.0,0.00010684,2]
[422976697,1779697847000,-500.0,0.00010684,2]
[422976698,1779697847000,-920.97,0.00010684,2]
[422976702,1779697847000,-834.81,0.00010684,2]
[422976700,1779697847000,-500.0,0.00010684,2]
[422976701,1779697847000,-500.0,0.00010684,2]
[422976696,1779697847000,-151.0,0.00010684,2]
[422976703,1779697847000,-500.0,0.00010684,2]
[422976714,1779697847000,-500.0,0.00010684,2]
[422976677,1779697847000,-500.0,0.0001041,2]
[422976692,1779697847000,-500.0,0.00010684,2]
[422976671,1779697847000,-500.0,0.0001041,2]
[422976665,1779697847000,-635.84,0.0001041,2]
[422976672,1779697847000,-500.0,0.0001041,2]
[422976650,1779697847000,-1099.99,0.0001041,2]
[422976649,1779697847000,-2485.17,0.0001041,2]
[422976651,1779697847000,-1210.42,0.0001041,2]
[422976653,1779697847000,-500.0,0.0001041,2]
[422976655,1779697847000,-500.0,0.0001041,2]
[422976662,1779697847000,-2458.36,0.0001041,2]
[422976663,1779697847000,-615.36380451,0.0001041,2]
[422976666,1779697847000,-500.0,0.0001041,2]
[422976660,1779697847000,-625.28,0.0001041,2]
[422976658,1779697847000,-500.0,0.0001041,2]
[422976656,1779697847000,-17098.84,0.0001041,2]
[422976673,1779697847000,-500.0,0.0001041,2]
[422976664,1779697847000,-5088.12,0.0001041,2]
[422976657,1779697847000,-689.81,0.0001041,2]
[422976667,1779697847000,-1376.44,0.0001041,2]
[422976669,1779697847000,-856.54,0.0001041,2]
[422976670,1779697847000,-500.0,0.0001041,2]
[422976674,1779697847000,-4115.35,0.0001041,2]
[422976676,1779697847000,-500.0,0.0001041,2]
[422976678,1779697847000,-801.0163,0.00010684,2]
[422976675,1779697847000,-1590.83,0.0001041,2]
[422976668,1779697847000,-500.0,0.0001041,2]
[422976680,1779697847000,-500.0,0.00010684,2]
[422976679,1779697847000,-500.0,0.00010684,2]
[422976659,1779697847000,-1760.86,0.0001041,2]
[422976704,1779697847000,-500.0,0.00010684,2]
[422976706,1779697847000,-873.33,0.00010684,2]
[422976705,1779697847000,-743.05,0.00010684,2]
[422976749,1779697847000,-500.0,0.00010684,2]
[422976750,1779697847000,-1316.95,0.00010684,2]
[422976747,1779697847000,-620.28,0.00010684,2]
[422976748,1779697847000,-500.0,0.00010684,2]
[422976754,1779697847000,-554.67,0.00010684,2]
[422976759,1779697847000,-500.0,0.00010684,2]
[422976758,1779697847000,-1257.68,0.00010684,2]
[422976756,1779697847000,-500.0,0.00010684,2]
[422976761,1779697847000,-677.31,0.00010684,2]
[422976764,1779697847000,-500.0,0.00010684,2]
[422976753,1779697847000,-500.0,0.00010684,2]
[422976742,1779697847000,-500.0,0.00010684,2]
[422976757,1779697847000,-500.0,0.00010684,2]
[422976762,1779697847000,-500.0,0.00010684,2]
[422976755,1779697847000,-500.0,0.00010684,2]
[422976766,1779697847000,-615.72,0.00010684,2]
[422976767,1779697847000,-4357.7,0.00010684,2]
[422976771,1779697847000,-2964.55,0.00010684,2]
[422976772,1779697847000,-853.49,0.00010684,2]
[422976765,1779697847000,-500.0,0.00010684,2]
[422976769,1779697847000,-500.0,0.00010684,2]
[422976768,1779697847000,-1510.48,0.00010684,2]
[422976770,1779697847000,-964.48,0.00010684,2]
[422976715,1779697847000,-1118.85,0.00010684,2]
[422976763,1779697847000,-500.0,0.00010684,2]
[422976745,1779697847000,-500.0,0.00010684,2]
[422976760,1779697847000,-500.0,0.00010684,2]
[422976743,1779697847000,-500.0,0.00010684,2]
[422976707,1779697847000,-500.0,0.00010684,2]
[422976746,1779697847000,-628.86590186,0.00010684,2]
[422976711,1779697847000,-500.0,0.00010684,2]
[422976713,1779697847000,-500.0,0.00010684,2]
[422976710,1779697847000,-500.0,0.00010684,2]
[422976712,1779697847000,-500.0,0.00010684,2]
[422976708,1779697847000,-500.0,0.00010684,2]
[422976709,1779697847000,-1171.11,0.00010684,2]
[422976719,1779697847000,-500.0,0.00010684,2]
[422976722,1779697847000,-500.0,0.00010684,2]
[422976717,1779697847000,-515.81,0.00010684,2]
[422976725,1779697847000,-500.0,0.00010684,2]
[422976736,1779697847000,-546.49,0.00010684,2]
[422976716,1779697847000,-402.17,0.00010684,2]
[422976738,1779697847000,-500.0,0.00010684,2]
[422976744,1779697847000,-622.33,0.00010684,2]
[422976741,1779697847000,-500.0,0.00010684,2]
[422976751,1779697847000,-500.0,0.00010684,2]
[422976739,1779697847000,-679.4127,0.00010684,2]
[422976740,1779697847000,-500.0,0.00010684,2]
[422976752,1779697847000,-500.0,0.00010684,2]
[422976737,1779697847000,-1132.43,0.00010684,2]
[422976731,1779697847000,-500.0,0.00010684,2]
[422976729,1779697847000,-500.0,0.00010684,2]
[422976733,1779697847000,-609.5,0.00010684,2]
[422976735,1779697847000,-500.0,0.00010684,2]
[422976826,1779697848000,-866.08,0.00010958,2]
[422976816,1779697848000,-801.0163,0.00010958,2]
[422976814,1779697848000,-500.0,0.00010684,2]
[422976810,1779697848000,-500.0,0.00010684,2]
[422976806,1779697848000,-500.0,0.00010684,2]
[422976809,1779697848000,-500.0,0.00010684,2]
[422976803,1779697848000,-635.84,0.00010684,2]
[422976808,1779697848000,-500.0,0.00010684,2]
[422976811,1779697848000,-500.0,0.00010684,2]
[422976813,1779697848000,-1590.83,0.00010684,2]
[422976815,1779697848000,-500.0,0.00010684,2]
[422976807,1779697848000,-856.54,0.00010684,2]
[422976827,1779697848000,-500.0,0.00010958,2]
[422976837,1779697848000,-500.0,0.00010958,2]
[422976818,1779697848000,-500.0,0.00010958,2]
[422976821,1779697848000,-703.8,0.00010958,2]
[422976820,1779697848000,-500.0,0.00010958,2]
[422976817,1779697848000,-500.0,0.00010958,2]
[422976824,1779697848000,-500.0,0.00010958,2]
[422976825,1779697848000,-500.0,0.00010958,2]
[422976822,1779697848000,-500.0,0.00010958,2]
[422976823,1779697848000,-500.0,0.00010958,2]
[422976830,1779697848000,-500.0,0.00010958,2]
[422976838,1779697848000,-500.0,0.00010958,2]
[422976828,1779697848000,-500.0,0.00010958,2]
[422976829,1779697848000,-500.0,0.00010958,2]
[422976812,1779697848000,-4115.35,0.00010684,2]
[422976819,1779697848000,-500.0,0.00010958,2]
[422976805,1779697848000,-1376.44,0.00010684,2]
[422976775,1779697848000,-4179.72,0.00010684,2]
[422976802,1779697848000,-5088.12,0.00010684,2]
[422976776,1779697848000,-500.0,0.00010684,2]
[422976773,1779697848000,-1731.17,0.00010684,2]
[422976774,1779697848000,-500.0,0.00010684,2]
[422976777,1779697848000,-500.0,0.00010684,2]
[422976780,1779697848000,-901.22,0.00010684,2]
[422976779,1779697848000,-500.0,0.00010684,2]
[422976781,1779697848000,-751.98,0.00010684,2]
[422976782,1779697848000,-1364.15,0.00010684,2]
[422976778,1779697848000,-500.0,0.00010684,2]
[422976785,1779697848000,-2065.05,0.00010684,2]
[422976786,1779697848000,-1939.88,0.00010684,2]
[422976789,1779697848000,-500.0,0.00010684,2]
[422976788,1779697848000,-500.0,0.00010684,2]
[422976804,1779697848000,-500.0,0.00010684,2]
[422976787,1779697848000,-500.0,0.00010684,2]
[422976784,1779697848000,-1276.56,0.00010684,2]
[422976791,1779697848000,-2485.17,0.00010684,2]
[422976790,1779697848000,-1429.06,0.00010684,2]
[422976794,1779697848000,-500.0,0.00010684,2]
[422976793,1779697848000,-1210.42,0.00010684,2]
[422976801,1779697848000,-2458.36,0.00010684,2]
[422976792,1779697848000,-1099.99,0.00010684,2]
[422976799,1779697848000,-1760.86,0.00010684,2]
[422976839,1779697848000,-743.05,0.00010958,2]
[422976795,1779697848000,-500.0,0.00010684,2]
[422976798,1779697848000,-500.0,0.00010684,2]
[422976800,1779697848000,-625.28,0.00010684,2]
[422976797,1779697848000,-689.81,0.00010684,2]
[422976783,1779697848000,-848.43,0.00010684,2]
[422976832,1779697848000,-920.97,0.00010958,2]
[422976796,1779697848000,-17098.84,0.00010684,2]
[422976833,1779697848000,-500.0,0.00010958,2]
[422976873,1779697848000,-500.0,0.00010958,2]
[422976871,1779697848000,-500.0,0.00010958,2]
[422976868,1779697848000,-1316.95,0.00010958,2]
[422976869,1779697848000,-500.0,0.00010958,2]
[422976866,1779697848000,-500.0,0.00010958,2]
[422976870,1779697848000,-500.0,0.00010958,2]
[422976874,1779697848000,-500.0,0.00010958,2]
[422976872,1779697848000,-554.67,0.00010958,2]
[422976878,1779697848000,-500.0,0.00010958,2]
[422976880,1779697848000,-500.0,0.00010958,2]
[422976889,1779697848000,-2964.55,0.00010958,2]
[422976879,1779697848000,-677.31,0.00010958,2]
[422976890,1779697848000,-853.49,0.00010958,2]
[422976867,1779697848000,-500.0,0.00010958,2]
[422976881,1779697848000,-500.0,0.00010958,2]
[422976883,1779697848000,-500.0,0.00010958,2]
[422976884,1779697848000,-615.72,0.00010958,2]
[422976885,1779697848000,-4357.7,0.00010958,2]
[422976887,1779697848000,-1510.48,0.00010958,2]
[422976888,1779697848000,-964.48,0.00010958,2]
[422976886,1779697848000,-500.0,0.00010958,2]
[422976892,1779697848000,-500.0,0.00010958,2]